fUSD/lending_fUSD_20260126
["ID","MTS","AMOUNT","RATE_DAILY","PERIOD"]
[403621627,1769423443340,-250.0,0.00016591,2]
[403621628,1769423443349,-322.6107,0.00016591,2]
[403621629,1769423443359,-250.0,0.00016591,2]
[403621630,1769423443368,-250.0,0.00016591,2]
[403621631,1769423443378,-2965.89695492,0.00016685,2]
[403621632,1769423443387,-1086.0,0.0001672,2]
[403621633,1769423443397,-1086.0,0.0001672,2]
[403621634,1769423443406,-1086.0,0.0001672,2]
[403621635,1769423443416,-580.9,0.00016765,2]
[403621636,1769423443425,-259.41,0.00016767,2]
[403621637,1769423443434,-2965.89695492,0.00016859,2]
[403621638,1769423443444,-221.62,0.00016874,2]
[403621639,1769423443454,-219.81550986,0.00016875,2]
[403621640,1769423443464,-580.9,0.00016877,2]
[403621641,1769423443473,-818.38874187,0.00016884,2]
[403621642,1769423443482,-500.0,0.00016884,2]
[403621643,1769423443492,-500.0,0.00016884,2]
[403621644,1769423443501,-500.0,0.00016884,2]
[403621645,1769423443511,-500.0,0.00016884,2]
[403621646,1769423443520,-500.56756303,0.00016884,2]
[403621647,1769423443530,-501.78167983,0.00016884,2]
[403621648,1769423443540,-500.0,0.00016884,2]
[403621649,1769423443549,-500.89949552,0.00016884,2]
[403621650,1769423443558,-500.63567767,0.00016884,2]
[403621651,1769423443568,-501.44171962,0.00016884,2]
[403621652,1769423443577,-501.66199463,0.00016884,2]
[403621653,1769423443586,-500.0,0.00016884,2]
[403621654,1769423443596,-500.0,0.00016884,2]
[403621655,1769423443605,-500.0,0.00016884,2]
[403621656,1769423443615,-207.78723917,0.00016884,2]
[403621657,1769423443625,-159.9184,0.00016884,2]
[403621658,1769423443635,-500.0,0.00016884,2]
[403621659,1769423443644,-1334.83718663,0.0001689,2]
[403621660,1769423443654,-24214.42003513,0.000169,2]
[403621661,1769423443667,-15486.88716002,0.00016927,2]
[403621662,1769423443677,-580.9,0.0001699,2]
[403621663,1769423443686,-221.62,0.0001699,2]
[403621664,1769423443697,-221.62,0.0001699,2]
[403621665,1769423443714,-250.0,0.00017,2]
[403621666,1769423443735,-251.49925824,0.00017,4]
[403621667,1769423443750,-131161.9361444,0.00017,2]
[403621668,1769423443760,-601.0,0.00017,2]
[403621669,1769423443769,-158.53555796,0.00017027,2]
[403621670,1769423443779,-2965.89695492,0.00017032,2]
[403621671,1769423443789,-1334.8371866,0.00017034,2]
[403621672,1769423443797,-15486.88715996,0.00017035,2]
[403621673,1769423443806,-1086.0,0.0001704,2]
[403621674,1769423443816,-1086.0,0.0001704,2]
[403621675,1769423443825,-1086.0,0.0001704,2]
[403621676,1769423443834,-484.73,0.00017041,2]
[403621677,1769423443844,-484.73,0.00017041,2]
[403621678,1769423443853,-484.73,0.00017041,2]
[403621679,1769423443863,-484.73,0.00017041,2]
[403621680,1769423443873,-484.73,0.00017041,2]
[403621681,1769423443883,-484.73,0.00017041,2]
[403621682,1769423443894,-250.0,0.0001708,2]
[403621683,1769423443903,-580.9,0.00017102,2]
[403621684,1769423443913,-1000.0,0.00017112,2]
[403621685,1769423443923,-181.08010149,0.00017139,2]
[403621686,1769423443933,-885.86649465,0.00017139,2]
[403621687,1769423443942,-151.0,0.00017139,2]
[403621688,1769423443951,-1334.8371866,0.00017179,2]
[403621689,1769423443962,-2965.89695492,0.00017206,2]
[403621690,1769423443971,-580.9,0.00017214,2]
[403621691,1769423443981,-393.14553403,0.00017257,2]
[403621692,1769423443991,-200.0,0.00017291,2]
[403621693,1769423444000,-200.0,0.00017299,2]
[403621694,1769423444010,-1334.8371866,0.00017323,2]
[403621695,1769423444019,-580.9,0.00017326,2]
[403621696,1769423444029,-246.80477319,0.00017343,2]
[403621697,1769423444038,-1086.0,0.0001736,2]
[403621698,1769423444047,-1086.0,0.0001736,2]
[403621699,1769423444057,-1086.0,0.0001736,2]
[403621700,1769423444067,-166.57316074,0.00017365,2]
[403621701,1769423444076,-156.0265452,0.00017378,2]
[403621702,1769423444085,-2965.89695492,0.00017379,2]
[403621703,1769423444095,-866.0,0.00017415,2]
[403621704,1769423444104,-1000.0,0.00017432,2]
[403621705,1769423444114,-1000.0,0.00017432,2]
[403621706,1769423444124,-1000.0,0.00017432,2]
[403621707,1769423444133,-1000.0,0.00017432,2]
[403621708,1769423444143,-1000.0,0.00017432,2]
[403621709,1769423444152,-504.06696789,0.00017432,2]
[403621710,1769423444162,-221.62,0.00017433,2]
[403621711,1769423444171,-221.62,0.00017433,2]
[403621712,1769423444180,-580.9,0.00017439,2]
[403621713,1769423444189,-500.0,0.00017442,2]
[403621714,1769423444199,-500.0,0.00017442,2]
[403621715,1769423444209,-500.0,0.00017442,2]
[403621716,1769423444218,-500.0,0.00017442,2]
[403621717,1769423444232,-500.0,0.00017442,2]
[403621719,1769423444250,-500.0,0.00017442,2]
[403621720,1769423444259,-502.30129903,0.00017442,2]
[403621721,1769423444268,-150.0,0.00017442,2]
[403621722,1769423444278,-1000000.0,0.00017443,2]
[403621723,1769423444288,-751.52,0.00017443,2]
[403621724,1769423444298,-751.52,0.00017443,2]
[403621725,1769423444308,-751.52,0.00017443,2]
[403621726,1769423444319,-751.52,0.00017443,2]
[403621727,1769423444329,-751.52,0.00017443,2]
[403621728,1769423444339,-751.52,0.00017443,2]
[403621729,1769423444348,-751.52,0.00017443,2]
[403621730,1769423444359,-751.52,0.00017443,2]
[403621731,1769423444370,-751.52,0.00017443,2]
[403621732,1769423444381,-751.52,0.00017443,2]
[403621733,1769423444391,-751.52,0.00017443,2]
[403621734,1769423444400,-1320.79,0.00017443,2]
[403621735,1769423444411,-156.02654515,0.00017465,2]
[403621736,1769423444420,-1334.8371866,0.00017467,2]
[403621737,1769423444430,-1000.0,0.000175,2]
[403621738,1769423444439,-257278.96660064,0.000175,3]
[403621739,1769423444449,-150.0,0.000175,2]
[403621740,1769423444459,-400.70302003,0.00017501,2]
[403621741,1769423444468,-1515.31804935,0.00017534,2]
[403621742,1769423444477,-184.0,0.00017543,2]
[403621743,1769423444487,-1269.0,0.00017543,2]
[403621744,1769423444496,-1204.0,0.00017543,2]
[403621745,1769423444505,-916.0,0.00017543,2]
[403621746,1769423444514,-615.0,0.00017543,2]
[403621747,1769423444524,-1408.0,0.00017543,2]
[403621748,1769423444534,-3477.0,0.00017543,2]
[403621749,1769423444544,-580.9,0.00017551,2]
[403621750,1769423444554,-156.02654515,0.00017552,2]
[403621751,1769423444564,-2965.89695492,0.00017553,2]
[403621752,1769423444573,-259.41,0.00017606,2]
[403621753,1769423444582,-1334.8371866,0.00017611,2]
[403621754,1769423444592,-200.0,0.00017612,2]
[403621755,1769423444601,-500.0,0.00017612,2]
[403621756,1769423444610,-166.57316073,0.00017633,2]
[403621757,1769423444620,-601.0,0.00017636,2]
[403621758,1769423444629,-156.02654515,0.00017639,2]
[403621759,1769423444638,-2443.65189707,0.0001764,2]
[403621760,1769423444647,-580.9,0.00017663,2]
[403621761,1769423444656,-867.98,0.0001767,2]
[403621762,1769423444669,-1086.0,0.0001768,2]
[403621763,1769423444679,-4764.2313394,0.00017681,2]
[403621764,1769423444688,-187.78006525,0.00017687,2]
[403621765,1769423444697,-918.64355495,0.00017687,2]
[403621766,1769423444708,-151.0,0.00017687,2]
[403621768,1769423444717,-500.0,0.00017699,2]
[403621770,1769423444727,-637.0,0.00017699,2]
[403621771,1769423444737,-403.0,0.000177,5]
[403621772,1769423444747,-1662.0,0.000177,2]
[403621773,1769423444756,-1966.473,0.00017704,2]
[403621774,1769423444771,-169.838,0.00017704,2]
[403621775,1769423444780,-1000.0,0.00017709,2]
[403621776,1769423444789,-10000.0,0.00017721,2]
[403621777,1769423444798,-156.02654515,0.00017726,2]
[403621778,1769423444807,-2965.89695492,0.00017726,2]
[403621779,1769423444816,-347.0,0.00017739,2]
[403621780,1769423444825,-500.0,0.00017754,2]
[403621781,1769423444834,-637.0,0.00017754,2]
[403621782,1769423444843,-1334.8371866,0.00017756,2]
[403621783,1769423444852,-580.9,0.00017775,2]
[403621784,1769423444861,-200.0,0.00017787,2]
[403621785,1769423444870,-200.0,0.00017805,2]
[403621786,1769423444879,-500.0,0.00017808,2]
[403621787,1769423444888,-350.0,0.00017809,2]
[403621788,1769423444897,-637.0,0.00017809,2]
[403621789,1769423444906,-156.02654515,0.00017813,2]
[403621790,1769423444914,-500.0,0.0001782,2]
[403621791,1769423444923,-500.0,0.0001782,2]
[403621792,1769423444932,-500.0,0.0001782,2]
[403621793,1769423444941,-500.0,0.0001782,2]
[403621794,1769423444949,-506.33966749,0.0001782,2]
[403621795,1769423444958,-500.0,0.0001782,2]
[403621796,1769423444966,-500.0,0.0001782,2]
[403621797,1769423444975,-649.14983305,0.0001782,2]
[403621798,1769423444984,-602.9035795,0.0001782,2]
[403621799,1769423444993,-25000.0,0.00017821,3]
[403621801,1769423445002,-25000.0,0.0001783,3]
[403621803,1769423445011,-25000.0,0.00017838,3]
[403621805,1769423445021,-500.0,0.0001784,2]
[403621807,1769423445029,-200.0,0.00017847,2]
[403621809,1769423445038,-25000.0,0.00017847,3]
[403621811,1769423445047,-200.0,0.00017855,2]
[403621812,1769423445055,-25000.0,0.00017856,3]
[403621813,1769423445064,-200.0,0.00017856,2]
[403621814,1769423445073,-500.0,0.00017863,2]
[403621816,1769423445081,-637.0,0.00017863,2]
[403621818,1769423445091,-1999.71875408,0.00017873,2]
[403621819,1769423445100,-1000.0,0.00017874,2]
[403621820,1769423445109,-580.9,0.00017888,2]
[403621821,1769423445119,-156.02654515,0.000179,2]
[403621822,1769423445128,-166.57316073,0.000179,2]
[403621823,1769423445137,-18194.85928529,0.000179,3]
[403621824,1769423445147,-2965.89695492,0.000179,2]
[403621825,1769423445157,-1334.8371866,0.000179,2]
[403621826,1769423445166,-9786.0,0.000179,2]
[403621827,1769423445175,-500.0,0.00017918,2]
[403621828,1769423445184,-637.0,0.00017918,2]
[403621829,1769423445194,-200.0,0.0001792,2]
[403621830,1769423445204,-242.94,0.00017932,2]
[403621831,1769423445213,-200.0,0.00017939,2]
[403621832,1769423445222,-867.98,0.00017944,2]
[403621833,1769423445234,-334.5472959,0.0001796,2]
[403621834,1769423445243,-500.0,0.00017972,2]
[403621835,1769423445252,-637.0,0.00017973,2]
[403621836,1769423445262,-150.0,0.00017973,2]
[403621837,1769423445271,-150.0,0.00017973,2]
[403621838,1769423445279,-481.92469826,0.0001798,2]
[403621839,1769423445288,-1500.0,0.0001798,2]
[403621840,1769423445297,-1500.0,0.0001798,2]
[403621841,1769423445307,-1500.0,0.0001798,2]
[403621842,1769423445316,-1500.0,0.0001798,2]
[403621843,1769423445326,-548.60289183,0.00017989,2]
[403621844,1769423445335,-500.0,0.00017989,2]
[403621845,1769423445344,-500.0,0.00017989,2]
[403621846,1769423445354,-500.0,0.00017989,2]
[403621847,1769423445363,-500.0,0.00017989,2]
[403621848,1769423445373,-329365.86067035,0.0001799,3]
[403621849,1769423445382,-28425.89174935,0.0001799,2]
[403621850,1769423445392,-500.0,0.00017998,2]
[403621851,1769423445402,-356.54749476,0.00017999,2]
[403621852,1769423445411,-407.48285116,0.00017999,2]
[403621853,1769423445422,-29608.3183671,0.00017999,2]
[403621854,1769423445431,-518.07460941,0.00017999,2]
[403621855,1769423445440,-500.0,0.00017999,2]
[403621856,1769423445450,-500.0,0.00017999,2]
[403621857,1769423445459,-500.0,0.00017999,2]
[403621858,1769423445469,-636.05526298,0.00017999,2]
[403621859,1769423445478,-500.0,0.00017999,2]
[403621860,1769423445491,-345.82799971,0.00017999,2]
[403621861,1769423445501,-142126.1709776,0.00017999,2]
[403621862,1769423445511,-537.9533771,0.00017999,2]
[403621863,1769423445521,-300.0,0.00017999,2]
[403621864,1769423445531,-676.91689947,0.00017999,2]
[403621865,1769423445541,-5317.3086559,0.00017999,2]
[403621866,1769423445550,-500.0,0.00017999,2]
[403621867,1769423445559,-500.0,0.00017999,2]
[403621868,1769423445568,-500.0,0.00017999,2]
[403621869,1769423445578,-287.69959162,0.00017999,2]
[403621870,1769423445587,-156216.3293598,0.00017999,2]
[403621871,1769423445596,-500.0,0.00017999,2]
[403621872,1769423445606,-500.0,0.00017999,2]
[403621873,1769423445615,-500.0,0.00017999,2]
[403621874,1769423445625,-500.0,0.00017999,2]
[403621875,1769423445634,-500.0,0.00017999,2]
[403621876,1769423445644,-500.0,0.00017999,2]
[403621877,1769423445654,-300.0,0.00017999,2]
[403621878,1769423445666,-666.0,0.00017999,2]
[403621879,1769423445677,-2295.9335014,0.00017999,2]
[403621880,1769423445687,-19483.228248,0.00017999,2]
[403621881,1769423445697,-300.0,0.00017999,2]
[403621882,1769423445708,-666.0,0.00017999,2]
[403621883,1769423445718,-150.0,0.00017999,2]
[403621884,1769423445727,-300.0,0.00017999,2]
[403621885,1769423445738,-666.0,0.00017999,2]
[403621886,1769423445757,-666.0,0.00017999,2]
[403621887,1769423445766,-161.2421187,0.00017999,2]
[403621888,1769423445776,-419136.59075677,0.00018,2]
[403621899,1769423447054,-2424.50195162,0.00017143,2]
[403621900,1769423447073,-1836.87031363,0.00017143,2]
[403621910,1769424134333,1561.0,0.000127,5]
[403621920,1769424631972,-151.0,0.00015932,2]
[403621921,1769424631986,-166.66,0.00016157,2]
[403621922,1769424631996,-300.0,0.00016163,2]
[403621923,1769424632006,-276.02370044,0.00016299,2]
[403621924,1769424632016,-305.47679173,0.00016299,2]
[403621925,1769424632030,-244.52320827,0.00016299,2]
[403621926,1769424632040,-192.91355673,0.000163,2]
[403621927,1769424632061,-1727.40440094,0.000163,2]
[403621928,1769424632072,-1181.50345571,0.000163,2]
[403621929,1769424632085,-430.57999999,0.000163,2]
[403621930,1769424632098,-3007.1599678,0.000163,2]
[403621931,1769424632110,-2256.44017765,0.000163,2]
[403621932,1769424632127,-1171.15387376,0.000163,2]
[403621933,1769424632216,-559.2491887,0.000163,2]
[403621934,1769424632228,-729.05658628,0.000163,2]
[403621935,1769424632262,-544.02,0.000163,2]
[403621936,1769424632274,-38206.51879243,0.000163,2]
[403621937,1769424632283,-1000.0,0.00016391,2]
[403621938,1769424632293,-1003.69086934,0.00016399,2]
[403621940,1769424632303,-1197.45,0.00016399,2]
[403621941,1769424632312,-1200.29,0.00016399,2]
[403621942,1769424632322,-11360.07,0.00016399,2]
[403621945,1769424632332,-1086.0,0.000164,2]
[403621946,1769424632341,-1086.0,0.000164,2]
[403621948,1769424632351,-1086.0,0.000164,2]
[403621949,1769424632360,-500.0,0.00016438,2]
[403621950,1769424632370,-500.0,0.00016438,2]
[403621951,1769424632379,-500.0,0.00016438,2]
[403621952,1769424632388,-500.0,0.00016438,2]
[403621953,1769424632398,-500.0,0.00016438,2]
[403621954,1769424632407,-500.0,0.00016438,2]
[403621955,1769424632416,-500.0,0.00016438,2]
[403621956,1769424632426,-500.0,0.00016438,2]
[403621957,1769424632435,-500.0,0.00016438,2]
[403621958,1769424632445,-500.0,0.00016438,2]
[403621959,1769424632454,-500.0,0.00016438,2]
[403621960,1769424632464,-415.44285946,0.00016438,2]
[403621961,1769424632473,-500.0,0.00016438,2]
[403621962,1769424632484,-500.0,0.00016438,2]
[403621963,1769424632493,-500.0,0.00016438,2]
[403621964,1769424632504,-500.0,0.00016438,2]
[403621965,1769424632513,-500.0,0.00016438,2]
[403621966,1769424632524,-500.0,0.00016438,2]
[403621967,1769424632533,-500.0,0.00016438,2]
[403621968,1769424632542,-500.0,0.00016438,2]
[403621969,1769424632553,-817.05,0.00016438,2]
[403621970,1769424632563,-227.03,0.00016438,2]
[403621971,1769424632572,-11600.0,0.000165,2]
[403621972,1769424632582,-150.0,0.0001657,2]
[403621973,1769424632591,-175.64320948,0.0001658,2]
[403621974,1769424632601,-500.0,0.00016589,2]
[403621975,1769424632611,-355.04414897,0.00016589,2]
[403621976,1769424632620,-208.3293345,0.00016589,2]
[403621977,1769424632630,-388.26755731,0.00016589,2]
[403621978,1769424632639,-300.12853534,0.00016589,2]
[403621979,1769424632649,-537.9533771,0.0001659,2]
[403621980,1769424632659,-506.33966749,0.0001659,2]
[403621981,1769424632668,-500.0,0.0001659,2]
[403621982,1769424632677,-500.0,0.0001659,2]
[403621983,1769424632686,-500.0,0.0001659,2]
[403621984,1769424632696,-500.0,0.0001659,2]
[403621985,1769424632706,-500.0,0.0001659,2]
[403621986,1769424632715,-500.0,0.0001659,2]
[403621987,1769424632725,-5172.86,0.0001659,2]
[403621988,1769424632735,-348.61,0.0001659,2]
[403621989,1769424632745,-773.23,0.0001659,2]
[403621990,1769424632755,-9999.99,0.0001659,2]
[403621991,1769424632764,-9999.99,0.0001659,2]
[403621992,1769424632774,-7630.04260687,0.0001659,2]
[403621993,1769424632786,-1071.18974195,0.0001659,2]
[403622001,1769424638186,-1020.29583807,0.0001659,2]
[403622002,1769424638243,-278.46181311,0.0001659,2]
[403622003,1769424638253,-539.69778898,0.0001659,2]
[403622004,1769424638264,-9460.29221102,0.0001659,2]
[403622005,1769424638274,-999.99,0.0001659,2]
[403622006,1769424638284,-150.99,0.0001659,2]
[403622007,1769424638293,-298.27,0.0001659,2]
[403622008,1769424638303,-341.85,0.0001659,2]
[403622009,1769424638312,-299.99,0.0001659,4]
[403622010,1769424638322,-669.72292638,0.0001659,5]
[403622011,1769424638333,-305.96311241,0.0001659,5]
[403622013,1769424638351,-2301.30594,0.0001659,5]
[403622125,1769424640528,-321212.4218085,0.000162,2]
[403622126,1769424640571,-1464.44502977,0.000162,2]
[403622127,1769424640582,-1620.0569502,0.000162,2]
[403622128,1769424640618,-6641.0542237,0.000162,2]
[403622129,1769424640629,-669062.02198783,0.000162,2]
[403622130,1769424640638,-5485.44802121,0.0001659,5]
[403622131,1769424640647,-304.44,0.0001659,2]
[403622132,1769424640656,-2461.72,0.0001659,2]
[403622133,1769424640665,-1926.16,0.0001659,2]
[403622134,1769424640674,-150.99,0.0001659,2]
[403622135,1769424640683,-2100.39,0.0001659,2]
[403622136,1769424640693,-188.46565415,0.0001659,2]
[403622137,1769424640703,-346.0,0.00016602,2]
[403622138,1769424640712,-165.35,0.00016666,2]
[403622139,1769424640721,-166.66,0.0001669,2]
[403622140,1769424640731,-817.05,0.00016712,2]
[403622141,1769424640740,-1086.0,0.0001672,2]
[403622142,1769424640751,-1086.0,0.0001672,2]
[403622143,1769424640761,-1086.0,0.0001672,2]
[403622144,1769424640770,-229.88,0.0001674,2]
[403622145,1769424640780,-150.0,0.0001674,2]
[403622146,1769424640789,-150.0,0.0001674,2]
[403622147,1769424640799,-3245.3,0.00016789,2]
[403622148,1769424640808,-1100.0,0.000168,6]
[403622149,1769424640817,-150.0,0.00016822,2]
[403622150,1769424640826,-637.0,0.00016822,2]
[403622151,1769424640836,-500.0,0.00016822,2]
[403622152,1769424640846,-190.0,0.00016822,2]
[403622153,1769424640855,-201.23255829,0.00016838,2]
[403622154,1769424640865,-899.18161019,0.0001684,2]
[403622155,1769424640874,-150.0,0.00016877,2]
[403622156,1769424640883,-637.0,0.00016877,2]
[403622157,1769424640892,-500.0,0.00016877,2]
[403622158,1769424640901,-501.16065005,0.00016884,2]
[403622159,1769424640912,-500.97270712,0.00016884,2]
[403622160,1769424640921,-515.66972611,0.00016884,2]
[403622161,1769424640930,-501.02318751,0.00016884,2]
[403622162,1769424640940,-500.0,0.00016884,2]
[403622163,1769424640950,-250.07737695,0.00016884,2]
[403622164,1769424640959,-500.0,0.00016884,2]
[403622165,1769424640969,-500.88310046,0.00016884,2]
[403622166,1769424640979,-252.73340052,0.00016884,2]
[403622167,1769424640992,-500.0,0.00016884,2]
[403622168,1769424641002,-500.0,0.00016884,2]
[403622169,1769424641012,-500.0,0.00016884,2]
[403622170,1769424641021,-500.0,0.00016884,2]
[403622171,1769424641032,-501.21016651,0.00016884,2]
[403622172,1769424641042,-180.06810397,0.00016884,2]
[403622173,1769424641051,-500.0,0.00016884,2]
[403622174,1769424641061,-500.03510196,0.00016884,2]
[403622175,1769424641071,-500.0,0.00016884,2]
[403622176,1769424641080,-500.0,0.00016884,2]
[403622177,1769424641090,-501.32593158,0.00016884,2]
[403622178,1769424641100,-500.0,0.00016884,2]
[403622179,1769424641109,-500.0,0.00016884,2]
[403622180,1769424641119,-500.0,0.00016884,2]
[403622181,1769424641128,-500.0,0.00016884,2]
[403622182,1769424641137,-501.32277439,0.00016884,2]
[403622183,1769424641147,-500.0,0.00016884,2]
[403622184,1769424641156,-3245.3,0.00016899,2]
[403622185,1769424641166,-2300.0,0.000169,6]
[403622186,1769424641176,-174.61919141,0.00016912,2]
[403622187,1769424641186,-578.20924308,0.00016912,2]
[403622188,1769424641196,-151.0,0.00016912,2]
[403622189,1769424641206,-2500.0,0.00016912,2]
[403622190,1769424641217,-2500.0,0.00016912,2]
[403622191,1769424641226,-2500.0,0.00016912,2]
[403622192,1769424641236,-2500.0,0.00016912,2]
[403622193,1769424641245,-2500.0,0.00016912,2]
[403622194,1769424641254,-2500.0,0.00016912,2]
[403622195,1769424641263,-2500.0,0.00016912,2]
[403622196,1769424641273,-322.6107,0.00016912,2]
[403622197,1769424641283,-2500.0,0.00016912,2]
[403622198,1769424641292,-2500.0,0.00016912,2]
[403622199,1769424641301,-2109.62639103,0.00016912,2]
[403622200,1769424641310,-179.77886385,0.00016912,2]
[403622201,1769424641320,-2349.0,0.00016912,2]
[403622202,1769424641329,-250.0,0.00016912,2]
[403622203,1769424641339,-250.0,0.00016912,2]
[403622204,1769424641349,-250.0,0.00016912,2]
[403622205,1769424641359,-250.0,0.00016912,2]
[403622206,1769424641368,-228.2823319,0.00016912,2]
[403622207,1769424641377,-250.0,0.00016912,2]
[403622208,1769424641387,-250.0,0.00016912,2]
[403622209,1769424641396,-854.2589148,0.00016912,2]
[403622210,1769424641405,-250.0,0.00016912,2]
[403622211,1769424641414,-250.0,0.00016912,2]
[403622212,1769424641423,-250.0,0.00016912,2]
[403622213,1769424641432,-250.0,0.00016912,2]
[403622214,1769424641441,-250.0,0.00016912,2]
[403622215,1769424641450,-250.0,0.00016912,2]
[403622216,1769424641460,-250.0,0.00016912,2]
[403622217,1769424641469,-250.0,0.00016912,2]
[403622218,1769424641478,-250.0,0.00016912,2]
[403622219,1769424641488,-250.0,0.00016912,2]
[403622220,1769424641497,-250.0,0.00016912,2]
[403622221,1769424641506,-250.0,0.00016912,2]
[403622222,1769424641515,-250.0,0.00016912,2]
[403622223,1769424641524,-250.0,0.00016912,2]
[403622224,1769424641533,-250.0,0.00016912,2]
[403622225,1769424641542,-250.0,0.00016912,2]
[403622226,1769424641552,-250.0,0.00016912,2]
[403622227,1769424641562,-250.0,0.00016912,2]
[403622228,1769424641571,-250.0,0.00016912,2]
[403622229,1769424641580,-250.0,0.00016912,2]
[403622230,1769424641589,-250.0,0.00016912,2]
[403622231,1769424641598,-250.0,0.00016912,2]
[403622232,1769424641607,-250.0,0.00016912,2]
[403622233,1769424641617,-250.0,0.00016912,2]
[403622234,1769424641626,-250.0,0.00016912,2]
[403622235,1769424641635,-250.0,0.00016912,2]
[403622236,1769424641644,-250.0,0.00016912,2]
[403622237,1769424641654,-250.0,0.00016912,2]
[403622238,1769424641663,-250.0,0.00016912,2]
[403622239,1769424641672,-250.0,0.00016912,2]
[403622240,1769424641682,-250.0,0.00016912,2]
[403622241,1769424641692,-250.0,0.00016912,2]
[403622242,1769424641702,-250.0,0.00016912,2]
[403622243,1769424641711,-250.0,0.00016912,2]
[403622244,1769424641720,-500.0,0.00016912,2]
[403622245,1769424641729,-500.0,0.00016912,2]
[403622246,1769424641739,-250.0,0.00016912,2]
[403622247,1769424641748,-500.0,0.00016912,2]
[403622248,1769424641758,-250.0,0.00016912,2]
[403622249,1769424641768,-500.0,0.00016912,2]
[403622250,1769424641777,-250.0,0.00016912,2]
[403622251,1769424641787,-500.0,0.00016912,2]
[403622252,1769424641796,-1000.0,0.00016912,2]
[403622253,1769424641805,-250.0,0.00016912,2]
[403622254,1769424641815,-500.0,0.00016912,2]
[403622255,1769424641825,-1000.0,0.00016912,2]
[403622256,1769424641835,-500.0,0.00016912,2]
[403622257,1769424641844,-1000.0,0.00016912,2]
[403622258,1769424641854,-500.0,0.00016912,2]
[403622259,1769424641863,-1000.0,0.00016912,2]
[403622260,1769424641872,-500.0,0.00016912,2]
[403622261,1769424641881,-151.0,0.00016912,2]
[403622262,1769424641891,-1000.0,0.00016912,2]
[403622263,1769424641900,-500.0,0.00016912,2]
[403622264,1769424641910,-1000.0,0.00016912,2]
[403622265,1769424641919,-500.0,0.00016912,2]
[403622266,1769424641928,-1000.0,0.00016912,2]
[403622267,1769424641939,-721.12765535,0.00016912,2]
[403622268,1769424641948,-1000.0,0.00016912,2]
[403622269,1769424641958,-1000.0,0.00016912,2]
[403622270,1769424641968,-250.0,0.00016912,2]
[403622271,1769424641977,-1000.0,0.00016912,2]
[403622272,1769424641989,-250.0,0.00016912,2]
[403622273,1769424641999,-1000.0,0.00016912,2]
[403622274,1769424642008,-250.0,0.00016912,2]
[403622275,1769424642017,-250.0,0.00016912,2]
[403622276,1769424642027,-250.0,0.00016912,2]
[403622277,1769424642037,-250.0,0.00016912,2]
[403622278,1769424642046,-250.0,0.00016912,2]
[403622279,1769424642056,-250.0,0.00016912,2]
[403622280,1769424642066,-250.0,0.00016912,2]
[403622281,1769424642077,-250.0,0.00016912,2]
[403622282,1769424642086,-250.0,0.00016912,2]
[403622283,1769424642096,-250.0,0.00016912,2]
[403622284,1769424642106,-250.0,0.00016912,2]
[403622285,1769424642115,-250.0,0.00016912,2]
[403622286,1769424642126,-250.0,0.00016912,2]
[403622287,1769424642135,-250.0,0.00016912,2]
[403622288,1769424642144,-250.0,0.00016912,2]